Workbook

Sheet Aislados
B2: Cálculo de los cuantiles de una distribución estadística
I4: A. Roldán 2016
A5: Datos aislados
A7: Si lo deseas, borra la zona de datos con este botón | H7: Instrucciones en la hoja 3
A8: Escribe los datos aislados en el rectángulo inferior y obtendrás los cuantiles
H9: Cálculo de un cuantil concreto
H10: Escribe el porcentaje del cuantil
B12: 2
B13: 4 | H13: 60
B14: 4 | H14: Cuantil: | I14: =PERCENTILE(datos,H13/100) -> 4.2
B15: 3
B16: 4
B17: 5
B18: 6
B19: 5
A21: Estadísticos
A23: Cuartil 1 | B23: =QUARTILE(datos,1) -> 3.75
A24: Mediana | B24: =QUARTILE(datos,2) -> 4
A25: Cuartil 3 | B25: =QUARTILE(datos,3) -> 5
A26: Máximo | B26: =MAX(datos) -> 6
A27: Mínimo | B27: =MIN(datos) -> 2
A28: Rango | B28: =B26-B27 -> 4
A29: Moda | B29: =MODE($A$11:$F$20) -> 4
A30: Semiintervalo
A31: Intercuartílico | B31: =(B25-B23)/2 -> 0.625
A32: Asimetría de
A33: Bowley | B33: =(B25+B23-B24*2)/(B25-B23) -> 0.6
A34: Curtosis | B34: =(B25-B23)/2/(PERCENTILE(datos,0.9)-PERCENTILE(datos,0.1)) -> 0.2403846154

Sheet Discretos con frecuencias
H1: A. Roldán 2016
A3: Datos discretos con frecuencias | G3: Instrucciones en la hoja 3
J6: Zona de cálculos auxiliares NO TOCAR
A7: DATOS | B7: FREC. | C7: F.ACUM. | D7: % | E7: ZONAS | G7: Cálculo de un cuantil concreto | J7: 10 | K7: 25 | L7: 50 | M7: 75 | N7: 90
A8: 2 | B8: 2 | C8: =IF(B8<>0,B8," ") -> 2 | D8: =IF(C8<>0,C8*100/$B$21," ") -> 9.523809524 | E8: =IF(D8<>0,IF(D8<=100,IF(D8<=$G$11,0,1)," ")," ") -> 0 | G8: Escribe el porcentaje del cuantil | J8: =IF($D8<>0,IF($D8<=100,IF($D8<=J$7,0,1)," ")," ") -> 0 | K8: 0 | L8: 0 | M8: 0 | N8: 0
A9: 3 | B9: 3 | C9: =IF(B9<>0,B9+C8," ") -> 5 | D9: 23.80952381 | E9: 0 | J9: 1 | K9: 0 | L9: 0 | M9: 0 | N9: 0
A10: 4 | B10: 5 | C10: 10 | D10: 47.61904762 | E10: 0 | J10: 1 | K10: 1 | L10: 0 | M10: 0 | N10: 0
A11: 5 | B11: 6 | C11: 16 | D11: 76.19047619 | E11: 0 | G11: 80 | J11: 1 | K11: 1 | L11: 1 | M11: 1 | N11: 0
A12: 6 | B12: 4 | C12: 20 | D12: 95.23809524 | E12: 1 | J12: 1 | K12: 1 | L12: 1 | M12: 1 | N12: 1
A13: 7 | B13: 1 | C13: 21 | D13: 100 | E13: 1 | G13: Escribe la amplitud | J13: 1 | K13: 1 | L13: 1 | M13: 1 | N13: 1
G14: 1
G16: Datos del cuantil | I16: =MATCH(1,$E$8:$E$20,0) -> 5
G18: Num. Intervalo | H18: =I16 -> 5
G19: Límite inferior | H19: =INDEX(A8:A20,I16)-ABS(G14/2) -> 5.5
G20: Amplitud | H20: =G14 -> 1
A21: Total: | B21: =SUM(B8:B20) -> 21 | G21: Frec. anterior | H21: =IF(H18>1,INDEX(C8:C20,I16-1),0) -> 16 | J21: =MATCH(1,J8:J20,0) -> 2 | K21: =MATCH(1,K8:K20,0) -> 3 | L21: =MATCH(1,L8:L20,0) -> 4 | M21: =MATCH(1,M8:M20,0) -> 4 | N21: =MATCH(1,N8:N20,0) -> 5
G22: Frec. Intervalo | H22: =INDEX(B8:B20,I16) -> 4 | J22: =INDEX($A8:$A20,J21)-ABS($G$14/2) -> 2.5 | K22: =INDEX($A8:$A20,K21)-ABS($G$14/2) -> 3.5 | L22: =INDEX($A8:$A20,L21)-ABS($G$14/2) -> 4.5 | M22: =INDEX($A8:$A20,M21)-ABS($G$14/2) -> 4.5 | N22: =INDEX($A8:$A20,N21)-ABS($G$14/2) -> 5.5
J23: =$G$14 -> 1 | K23: =$G$14 -> 1 | L23: =$G$14 -> 1 | M23: =$G$14 -> 1 | N23: =$G$14 -> 1
G24: Cuantil: | H24: =H19+(B21*G11/100-H21)/H22*H20 -> 5.7 | J24: =IF(J22>1,INDEX($C$8:$C$20,J21-1),0) -> 2 | K24: =IF(K22>1,INDEX($C$8:$C$20,K21-1),0) -> 5 | L24: =IF(L22>1,INDEX($C$8:$C$20,L21-1),0) -> 10 | M24: =IF(M22>1,INDEX($C$8:$C$20,M21-1),0) -> 10 | N24: =IF(N22>1,INDEX($C$8:$C$20,N21-1),0) -> 16
J25: =INDEX($B$8:$B$20,J21) -> 3 | K25: =INDEX($B$8:$B$20,K21) -> 5 | L25: =INDEX($B$8:$B$20,L21) -> 6 | M25: =INDEX($B$8:$B$20,M21) -> 6 | N25: =INDEX($B$8:$B$20,N21) -> 4
A26: =K26 -> 3.55 | J26: =J22+($B$21*J7/100-J24)/J25*$G$14 -> 2.533333333 | K26: =K22+($B$21*K7/100-K24)/K25*$G$14 -> 3.55 | L26: =L22+($B$21*L7/100-L24)/L25*$G$14 -> 4.583333333 | M26: =M22+($B$21*M7/100-M24)/M25*$G$14 -> 5.458333333 | N26: =N22+($B$21*N7/100-N24)/N25*$G$14 -> 6.225
A27: =L26 -> 4.583333333
A28: =M26 -> 5.458333333
A30: =(M26-K26)/2 -> 0.9541666667
A32: =(K26+M26-L26*2)/(M26-K26) -> -0.08296943231
A33: =(M26-K26)/2/(N26-J26) -> 0.2584650113

Sheet Instrucciones
C3: Instrucciones
B7: Datos aislados
B9: Entrada de datos
B10: En la hoja 1 están explicadas las operaciones:
B11: Se borran los datos con el botón correspondiente
B12: Se escriben los datos en cualquier orden y posición dentro del rectángulo de color azul.
B13: Se ignorarán los datos que no sean numéricos.
B15: Cálculo de cualquier cuantil
B16: En la celda H13 se escribe el porcentaje deseado, por ejemplo 50 para la mediana, 25 para Q1, 90 para D9...
B17: En la celda amarilla inferior obtendrás el cuantil correspondiente.
B19: Estadísticos
B20: La tabla de estadísticos de orden se calcula de forma automática. En el apartado de Teoría
B21: puedes consultar el significado de cada uno.
B23: Datos discretos
B25: Entrada de datos
B26: Se borran los datos con el botón correspondiente
B27: Los valores de los datos se escriben en la columna “Datos”, dentro de la zona de color salmón.
B28: Los valores de las frecuencias se escriben en la siguiente columna de color verde pastel
B29: No se debe escribir en las siguientes columnas de datos
B30: Es imprecindible escribir la diferencia entre dos datos consecutivos (amplitud) en la celda H14
B32: Cálculo de cualquier cuantil
B33: En la celda H11 se escribe el porcentaje deseado, por ejemplo 50 para la mediana, 25 para Q1, 90 para D9...
B34: En la celda amarilla I24 obtendrás el cuantil correspondiente.
